bitfinex/quotes_ETHUSD_20251018
["timestamp","ask_amount","ask_price","bid_price","bid_amount"]
[1760777358286,0.56974794,3894.9,3894.7,0.128]
[1760777358483,0.2875,3894.8,3894.5,2.56971985]
[1760777358775,0.2875,3894.7,3894.6,2.56765778]
[1760777359541,0.28224794,3894.9,3894.8,2.56752593]
[1760777359845,0.04474794,3894.9,3894.8,3.0812443]
[1760777360047,0.001,3895.1,3895.0,2.56739409]
[1760777365179,0.001,3895.1,3894.7,2.5675909]
[1760777365180,0.2885,3895.1,3894.7,2.5675909]
[1760777365348,0.2375,3894.8,3894.7,2.5675909]
[1760777365543,0.525,3894.8,3894.5,0.002]
[1760777365782,0.2875,3894.7,3894.5,0.002]
[1760777366159,0.2375,3894.8,3894.6,2.56765778]
[1760777366876,0.2375,3894.8,3894.7,2.56759185]
[1760777367375,0.525,3894.8,3894.7,2.56759185]
[1760777367545,0.04574695,3895.1,3894.6,2.56765778]
[1760777367747,0.04574695,3895.1,3894.9,2.56740696]
[1760777368153,0.50434695,3895.1,3894.9,2.56740696]
[1760777368378,0.63234695,3895.1,3894.9,2.56740696]
[1760777368958,0.63234695,3895.1,3894.8,2.5675023]
[1760777369460,0.63234695,3895.1,3894.9,2.56745111]
[1760777370481,0.17374695,3895.1,3894.9,2.56741573]
[1760777370977,0.17374695,3895.1,3894.8,2.5675052]
[1760777371182,0.63234695,3895.1,3894.8,2.5675052]
[1760777371568,0.63234695,3895.1,3894.9,2.56744539]
[1760777371749,0.63234695,3895.1,3894.6,2.5676527]
[1760777372076,0.17374695,3895.1,3894.5,0.13]
[1760777372281,0.17374695,3895.1,3895.0,2.56739409]
[1760777372472,0.04574695,3895.1,3895.0,2.56739409]
[1760777374396,0.04574695,3895.1,3895.0,2.99889409]
[1760777375682,0.001,3895.1,3895.0,3.02456803]
[1760777377670,0.001,3895.1,3895.0,2.99889409]
[1760777377881,0.001,3895.1,3895.0,3.56833508]
[1760777378601,0.001,3895.1,3895.0,3.59400902]
[1760777378999,0.001,3895.1,3895.0,4.20193508]
[1760777379303,0.001,3895.1,3895.0,4.22760902]
[1760777381183,0.001,3895.1,3895.0,4.20193508]
[1760777381903,1e-08,3895.2,3895.1,4.92892818]
[1760777382199,1e-08,3895.2,3895.1,6.91317348]
[1760777384501,1e-08,3895.2,3895.1,6.48167348]
[1760777385393,1e-08,3895.2,3895.1,5.84807348]
[1760777385591,1e-08,3895.2,3895.1,6.48167348]
[1760777385791,1e-08,3895.2,3895.1,4.12007348]
[1760777385997,1e-08,3895.2,3895.1,2.56732818]
[1760777386193,0.45540001,3895.2,3895.1,2.56732818]
[1760777386721,0.45540001,3895.2,3895.0,2.56739409]
[1760777386873,0.4554,3895.1,3894.9,2.56739911]
[1760777387072,0.4554,3895.0,3894.9,2.56739911]
[1760777387808,0.04474295,3895.2,3895.1,2.56732818]
[1760777389121,0.50014295,3895.2,3895.1,2.56732818]
[1760777389411,0.04474295,3895.2,3895.1,2.56732818]
[1760777389616,0.50014295,3895.2,3895.1,2.56732818]
[1760777389916,0.50014295,3895.2,3895.1,2.69532818]
[1760777390614,0.04474295,3895.2,3895.1,2.69532818]
[1760777390982,0.50014295,3895.2,3895.1,2.69532818]
[1760777391424,0.50014295,3895.2,3895.1,0.128]
[1760777391588,0.50014295,3895.2,3895.1,2.69532818]
[1760777393518,0.04474295,3895.2,3895.1,2.69532818]
[1760777393711,0.04474295,3895.2,3895.1,3.264756]
[1760777394689,0.04474295,3895.2,3895.1,2.69532818]
[1760777398422,0.50294295,3895.2,3895.1,2.69532818]
[1760777400629,0.50294295,3895.2,3894.9,2.69542967]
[1760777400808,0.4582,3895.1,3894.9,2.69542967]
[1760777401003,0.4582,3895.0,3894.9,2.69542967]
[1760777401827,0.4582,3895.0,3894.9,0.128]
[1760777402026,0.04474295,3895.2,3894.9,2.69545441]
[1760777402395,0.50294295,3895.2,3894.9,0.128]
[1760777402802,0.50294295,3895.2,3894.9,2.69545636]
[1760777403002,0.4582,3895.1,3894.9,2.69545636]
[1760777403209,0.4582,3895.1,3894.9,0.128]
[1760777403531,0.4582,3895.0,3894.6,2.56959736]
[1760777403737,0.04474295,3895.2,3894.6,2.56959736]
[1760777403738,0.0686,3894.7,3894.6,2.56959736]
[1760777403925,0.5229,3894.7,3894.6,2.56959736]
[1760777404630,0.04474295,3895.2,3894.6,2.56959736]
[1760777404631,0.4638,3895.0,3894.8,2.56751854]
[1760777404831,0.4638,3895.0,3894.6,2.56959736]
[1760777404832,0.4598,3894.9,3894.6,0.002]
[1760777405031,0.4598,3894.9,3894.6,2.56963396]
[1760777405218,0.4598,3894.9,3894.6,0.002]
[1760777405219,0.4638,3894.8,3894.6,0.002]
[1760777405419,0.4638,3894.8,3894.7,2.56759185]
[1760777408340,0.063,3894.9,3894.7,2.56759185]
[1760777408742,0.5228,3894.9,3894.7,2.56759185]
[1760777408944,0.5228,3894.9,3894.8,2.56752593]
[1760777409640,0.34704295,3895.2,3894.6,0.002]
[1760777409942,0.34704295,3895.2,3894.9,2.56740117]
[1760777410124,0.04474295,3895.2,3894.9,2.56740117]
[1760777410329,0.3023,3895.1,3894.9,2.56740117]
[1760777410652,0.3023,3895.1,3895.0,2.56739409]
[1760777411143,0.04474295,3895.2,3895.1,2.56732818]
[1760777411438,1e-08,3895.2,3895.1,3.03512818]
[1760777412720,1e-08,3895.2,3895.1,5.42240146]
[1760777412956,1e-08,3895.2,3895.1,5.39672818]
[1760777413441,1e-08,3895.2,3895.1,5.52472818]
[1760777413646,1e-08,3895.2,3895.1,6.33394188]
[1760777413808,1e-08,3895.2,3895.1,5.86614188]
[1760777414011,1e-08,3895.2,3895.1,6.33394188]
[1760777414768,1e-08,3895.2,3895.1,3.50454188]
[1760777415048,1e-08,3895.2,3895.1,2.69532818]
[1760777416915,1e-08,3895.2,3895.1,3.18880146]
[1760777417119,1e-08,3895.2,3895.1,3.16312818]
[1760777418133,1e-08,3895.2,3895.1,2.56732818]
[1760777419345,1e-08,3895.2,3895.1,3.03512818]
[1760777419549,1e-08,3895.2,3895.1,3.59538686]
[1760777420870,1e-08,3895.2,3895.1,3.12758686]
[1760777421569,1e-08,3895.2,3895.1,2.56732818]
[1760777423374,0.29490001,3895.2,3895.1,2.56732818]
[1760777424238,0.29490001,3895.2,3895.0,2.56738668]
[1760777424435,0.29490001,3895.2,3894.6,0.002]
[1760777424436,1e-08,3895.2,3894.6,0.002]
[1760777424643,0.2222,3894.7,3894.6,0.002]
[1760777424874,0.5171,3894.7,3894.6,2.56965778]
[1760777425330,0.5171,3894.7,3894.6,0.002]
[1760777425530,0.5171,3894.7,3894.6,2.56965778]
[1760777426743,0.04474749,3895.1,3895.0,2.56739409]
[1760777428159,0.04474749,3895.1,3895.0,2.69539409]
[1760777429151,1e-08,3895.2,3895.0,2.69539409]
[1760777429152,1e-08,3895.2,3895.1,2.56732818]
[1760777429335,1e-08,3895.2,3895.1,3.20092818]
[1760777429527,1e-08,3895.2,3895.1,3.02272818]
[1760777429729,1e-08,3895.2,3895.1,3.83848798]
[1760777430966,1e-08,3895.2,3895.1,3.38308798]
[1760777431324,1e-08,3895.2,3895.1,3.86416126]
[1760777433032,1e-08,3895.2,3895.1,4.49776126]
[1760777433663,1e-08,3895.2,3895.1,6.20008798]
[1760777439242,1e-08,3895.2,3895.1,6.32808798]
[1760777442782,1e-08,3895.2,3895.1,5.87268798]
[1760777443171,1e-08,3895.2,3895.1,5.87468798]
[1760777445697,1e-08,3895.2,3895.1,4.01868798]
[1760777445872,0.45250001,3895.2,3895.1,3.38508798]
[1760777446188,0.45250001,3895.2,3895.1,2.56932818]
[1760777446752,1e-08,3895.2,3895.1,2.56932818]
[1760777448701,0.43010001,3895.2,3895.1,2.56932818]
[1760777450904,1e-08,3895.2,3895.1,2.56932818]
[1760777451800,0.43010001,3895.2,3895.1,2.56932818]
[1760777452307,1e-08,3895.2,3895.1,2.56932818]
[1760777455211,1e-08,3895.2,3895.1,3.71660041]
[1760777455574,1e-08,3895.2,3895.1,3.84460041]
[1760777457387,1e-08,3895.2,3895.1,4.16530041]
[1760777457582,1e-08,3895.2,3895.1,3.71660041]
[1760777459541,1e-08,3895.2,3895.1,4.17360041]
[1760777460313,1e-08,3895.2,3895.1,4.19927369]
[1760777461579,1e-08,3895.2,3895.1,4.17360041]
[1760777462011,1e-08,3895.2,3895.1,3.71660041]
[1760777462985,1e-08,3895.2,3895.1,3.08300041]
[1760777467046,8.03862699,3895.2,3894.6,1.73]
[1760777467217,3.86111349,3894.7,3894.6,0.002]
[1760777467537,7.35142976,3894.7,3894.6,0.002]
[1760777467738,7.78302976,3894.7,3894.6,0.002]
[1760777467937,8.56133274,3894.7,3894.6,0.002]
[1760777468120,18.15257309,3894.7,3894.6,0.002]
[1760777468643,0.04475666,3894.7,3894.6,0.002]
[1760777468850,1e-08,3895.2,3894.6,3.76888907]
[1760777469054,1e-08,3895.2,3894.6,0.002]
[1760777469527,0.0565,3894.7,3894.6,0.002]
[1760777469728,0.4911,3894.7,3894.6,0.002]
[1760777470445,0.53584732,3894.7,3894.6,0.002]
[1760777472847,0.10124732,3894.7,3894.6,0.002]
[1760777473036,0.53584732,3894.7,3894.6,0.002]
[1760777478346,0.53584732,3894.7,3894.3,0.002]
[1760777478553,0.53584732,3894.7,3891.3,0.10299496]
[1760777478554,1.728,3894.1,3891.3,0.10299496]
[1760777478748,5.91054636,3894.6,3891.3,0.10299496]
[1760777478749,0.848,3892.5,3891.3,0.10299496]
[1760777478952,0.2144,3892.5,3890.8,0.4562]
[1760777479171,1.09679273,3892.5,3891.1,0.2163]
[1760777479375,1.09679273,3892.5,3891.4,2.56976621]
[1760777479558,2.35361441,3892.5,3891.1,2.78624754]
[1760777479764,1.09679273,3892.5,3891.4,2.56976859]
[1760777479966,2.48602846,3892.5,3891.1,2.78625911]
[1760777480281,2.48602846,3892.5,3891.1,0.2163]
[1760777480655,2.48602846,3892.5,3890.8,0.4562]
[1760777480985,4.64493585,3892.5,3891.0,2.57001973]
[1760777481549,4.64493585,3892.5,3891.1,2.56993758]
[1760777481876,4.64493585,3892.5,3891.1,0.2163]
[1760777482484,4.64493585,3892.5,3891.1,2.78620726]
[1760777482689,4.64493585,3892.5,3891.2,2.56987448]
[1760777483186,4.24192477,3892.5,3891.2,2.56987448]
[1760777483387,4.24192477,3892.5,3891.1,0.2163]
[1760777483748,4.24192477,3892.5,3891.1,2.78624173]
[1760777484190,4.24192477,3892.5,3891.2,2.56987537]
[1760777484556,0.313202,3891.2,3891.1,2.78624952]
[1760777484783,0.313202,3891.2,3891.1,3.24244952]
[1760777484975,0.313202,3891.2,3891.1,0.6725]
[1760777485383,0.313202,3891.2,3891.1,3.24246736]
[1760777485801,0.313202,3891.2,3891.1,0.6725]
[1760777486692,0.313202,3891.2,3891.1,3.24246736]
[1760777487698,0.313202,3891.2,3891.1,5.55172357]
[1760777488485,0.313202,3891.2,3891.1,5.67972357]
[1760777488796,0.313202,3891.2,3891.1,3.10975621]
[1760777488983,0.313202,3891.2,3891.1,2.5285]
[1760777490767,0.128,3892.2,3891.2,1.728]
[1760777490967,0.128,3892.2,3891.2,0.4358]
[1760777491289,0.128,3892.2,3891.7,0.128]
[1760777491497,0.04478065,3892.4,3892.1,0.2163]
[1760777491869,0.04478065,3892.4,3892.1,0.6521]
[1760777492369,0.04478065,3892.4,3892.1,0.2163]
[1760777493621,0.04478065,3892.4,3892.3,0.128]
[1760777493782,0.128,3893.5,3892.3,0.128]
[1760777493980,0.128,3893.5,3892.2,0.4358]
[1760777493981,0.04477069,3893.3,3892.9,0.128]
[1760777494585,0.449,3893.2,3892.9,0.128]
[1760777495096,0.04477069,3893.3,3892.1,0.2163]
[1760777495097,0.17277069,3893.3,3892.7,0.128]
[1760777495396,0.002,3892.8,3892.7,0.128]
[1760777496167,0.451,3892.8,3892.7,0.128]
[1760777496995,0.49577037,3892.8,3892.7,0.128]
[1760777497299,0.49577037,3892.8,3892.3,0.128]
[1760777497601,0.04677037,3892.8,3892.4,0.4358]
[1760777497784,0.04677037,3892.8,3892.5,0.4358]
[1760777498806,0.449,3892.7,3892.3,0.128]
[1760777499008,0.449,3892.6,3892.3,0.128]
[1760777499312,0.449,3892.6,3892.1,0.001]
[1760777499474,0.449,3892.6,3892.1,0.129]
[1760777500673,0.128,3892.7,3892.1,0.129]
[1760777501214,0.128,3892.7,3892.2,0.1849798]
[1760777503693,0.128,3892.7,3892.3,0.4358]
[1760777503898,0.128,3892.7,3892.4,0.4358]
[1760777505098,0.04677037,3892.8,3892.5,0.5638]
[1760777505990,0.04677037,3892.8,3892.6,0.4358]
[1760777508420,0.04677037,3892.8,3892.7,0.4378]
[1760777508820,0.04677037,3892.8,3892.7,0.5658]
[1760777508821,0.002,3892.8,3892.7,0.5658]
[1760777510223,0.002,3892.8,3892.7,0.128]
[1760777514324,0.002,3892.8,3892.7,0.5658]
[1760777517136,0.002,3892.8,3892.7,1.1994]
[1760777521741,0.002,3892.8,3892.7,0.5658]
[1760777522111,0.002,3892.8,3892.7,0.128]
[1760777522712,0.002,3892.8,3892.7,0.5729]
[1760777523518,0.002,3892.8,3892.7,1.2065]
[1760777525828,0.002,3892.8,3892.7,1.231]
[1760777526855,0.002,3892.8,3892.7,0.7616]
[1760777527060,0.002,3892.8,3892.7,1.231]
[1760777527931,0.002,3892.8,3892.7,3.79991103]
[1760777528126,0.002,3892.8,3892.7,3.82560014]
[1760777528535,0.002,3892.8,3892.7,4.4650594]
[1760777529038,0.002,3892.8,3892.7,0.78728911]
[1760777529039,0.4479,3892.8,3892.7,0.78728911]
[1760777529233,0.4479,3892.8,3892.3,0.01]
[1760777529473,0.4459,3892.7,3892.4,2.56910903]
[1760777529645,0.4459,3892.6,3892.5,2.56903549]
[1760777529971,0.4459,3892.6,3892.4,2.56909324]
[1760777530168,0.002,3892.8,3892.5,2.56903423]
[1760777530668,0.4459,3892.7,3892.3,2.57912039]
[1760777530850,0.4459,3892.6,3892.3,0.01]
[1760777532174,0.87680739,3892.6,3892.3,0.01]
[1760777534477,0.4459,3892.6,3892.3,0.01]
[1760777534713,0.43090739,3892.5,3892.3,0.01]
[1760777535069,0.4459,3892.4,3892.3,0.01]
[1760777535244,0.7904785,3892.4,3892.3,0.01]
[1760777535447,0.4459,3892.4,3892.3,0.01]
[1760777535641,0.49068311,3892.4,3892.3,0.01]
[1760777539880,0.04478311,3892.4,3892.3,0.01]
[1760777540285,0.49068311,3892.4,3892.3,0.01]
[1760777542313,0.04478311,3892.4,3892.3,2.57917503]
[1760777543808,0.04478311,3892.4,3892.3,3.62896194]
[1760777544108,0.04478311,3892.4,3892.3,3.75696194]
[1760777544685,0.002,3892.8,3892.7,2.56891103]
[1760777544877,0.002,3892.8,3892.7,2.69691103]
[1760777545077,0.002,3892.8,3892.7,3.16631103]
[1760777545791,0.002,3892.8,3892.7,2.69691103]
[1760777546299,0.4479,3892.8,3892.7,0.128]
[1760777546810,0.4479,3892.8,3892.3,0.01]
[1760777547014,0.4479,3892.8,3892.3,0.138]
[1760777547187,0.4459,3892.7,3892.3,2.70716515]
[1760777547386,0.49067234,3892.7,3892.3,2.70716515]
[1760777548113,0.04477234,3892.7,3892.3,2.70716515]
[1760777548282,0.4459,3892.6,3892.3,2.70716515]
[1760777549011,0.4459,3892.6,3892.3,0.138]
[1760777549313,0.4467,3892.5,3892.3,0.138]
[1760777549511,0.4467,3892.4,3892.3,0.138]
[1760777550217,0.4467,3892.4,3892.3,0.01]
[1760777550408,0.5747,3892.4,3892.3,0.01]
[1760777556041,1.91766672,3892.4,3892.3,0.01]
[1760777556807,2.32070103,3892.4,3892.3,0.01]
[1760777557030,0.97773431,3892.4,3892.3,0.01]
[1760777559207,0.40303431,3892.4,3892.3,0.01]
[1760777559435,5.94083304,3892.4,3892.3,0.01]
[1760777560437,6.38753304,3892.4,3892.3,0.01]
[1760777565147,6.38953304,3892.4,3892.3,0.01]
[1760777565642,7.04326883,3892.4,3892.3,0.01]
[1760777569829,9.61237786,3892.4,3892.3,0.01]
[1760777570028,7.38863105,3892.4,3892.3,0.01]
[1760777570257,7.14632934,3892.4,3892.3,0.01]
[1760777570854,6.59656883,3892.4,3892.3,0.01]
[1760777574239,7.04326883,3892.4,3892.3,0.01]
[1760777577137,6.59656883,3892.4,3892.3,0.01]
[1760777581978,7.06766883,3892.4,3892.3,0.01]
[1760777584055,6.59656883,3892.4,3892.3,0.01]
[1760777588796,5.94283304,3892.4,3892.3,0.464]
[1760777588961,5.53979873,3892.4,3892.3,0.464]
[1760777590192,1.73,3892.4,3892.3,0.464]
[1760777590490,5.53979873,3892.4,3892.3,0.01]
[1760777591803,6.01179873,3892.4,3892.3,0.01]
[1760777592007,6.92745501,3892.4,3892.3,0.01]
[1760777594081,6.45545501,3892.4,3892.3,0.01]
[1760777596208,5.53979873,3892.4,3892.3,0.01]
[1760777596419,5.53979873,3892.4,3892.3,0.464]
[1760777598127,1.73,3892.4,3892.3,0.464]
[1760777599721,0.002,3892.4,3892.3,0.464]
[1760777600424,0.002,3892.4,3892.3,3.03317503]
[1760777600627,0.002,3892.4,3892.3,3.61202254]
[1760777601124,0.002,3892.4,3892.3,1.04284751]
[1760777602002,0.002,3892.4,3892.3,0.464]
[1760777604043,0.002,3892.4,3892.3,0.01]
[1760777607518,3.81179873,3892.4,3892.3,0.01]
[1760777607712,4.41179873,3892.4,3892.3,0.01]
[1760777609234,0.13,3892.4,3892.3,0.01]
[1760777609447,4.39659873,3892.4,3892.3,0.01]
[1760777611242,3.93979873,3892.4,3892.3,0.01]
[1760777612842,4.39659873,3892.4,3892.3,0.01]
[1760777613747,3.93979873,3892.4,3892.3,0.01]
[1760777614138,4.39659873,3892.4,3892.3,0.01]
[1760777615351,0.5868,3892.4,3892.3,0.01]
[1760777619449,0.13,3892.4,3892.3,0.01]
[1760777620349,0.002,3892.4,3892.3,3.04667503]
[1760777620550,0.002,3892.4,3892.3,0.4775]
[1760777621526,0.002,3892.4,3892.3,0.01]
[1760777625230,0.002,3892.4,3892.3,0.4775]
[1760777625453,0.002,3892.4,3892.3,1.0577086]
[1760777625638,0.002,3892.4,3892.3,0.4775]
[1760777626034,0.002,3892.4,3892.3,3.04667503]
[1760777627661,0.002,3892.4,3892.3,0.4775]
[1760777628160,0.002,3892.4,3892.3,0.01]
[1760777632667,0.002,3892.4,3892.3,2.57917503]
[1760777632978,0.002,3892.4,3892.3,3.58012949]
[1760777633475,0.002,3892.4,3892.3,3.04667503]
[1760777633646,0.002,3892.4,3892.3,0.01]
[1760777636765,0.002,3892.4,3892.3,2.57917503]
[1760777638699,0.002,3892.4,3892.3,0.01]
[1760777638987,0.002,3892.4,3892.3,2.57917503]
[1760777639984,0.002,3892.4,3892.3,0.01]
[1760777640897,0.002,3892.4,3892.2,2.56223629]
[1760777641361,0.002,3892.4,3892.2,3.03433629]
[1760777641566,0.002,3892.4,3892.2,0.4721]
[1760777641765,0.002,3892.4,3892.2,2.56923581]
[1760777642262,0.002,3892.4,3892.3,3.04127503]
[1760777642702,0.002,3892.4,3892.3,3.620928]
[1760777642856,0.002,3892.4,3892.3,5.348928]
[1760777643184,0.002,3892.4,3892.3,5.476928]
[1760777649393,0.002,3892.4,3892.3,3.748928]
[1760777652600,0.002,3892.4,3892.3,3.276828]
[1760777652768,0.002,3892.4,3892.3,3.404828]
[1760777654927,0.002,3892.4,3892.3,5.132828]
[1760777655209,0.002,3892.4,3892.3,5.587428]
[1760777655501,0.002,3892.4,3892.3,3.859428]
[1760777655914,0.002,3892.4,3892.1,0.001]
[1760777655915,0.4746,3892.4,3892.1,0.001]
[1760777656275,0.4746,3892.4,3892.3,2.56917503]
[1760777656500,0.4746,3892.4,3892.1,0.001]
[1760777657710,0.002,3892.4,3892.1,0.001]
[1760777657914,0.4726,3892.3,3892.1,0.001]
[1760777659100,0.50464033,3892.2,3892.1,0.001]
[1760777659488,0.97724033,3892.2,3892.1,0.001]
[1760777664737,0.97924033,3892.2,3892.1,0.001]
[1760777666911,1.02402598,3892.2,3892.1,0.001]
[1760777672851,1.65762598,3892.2,3892.1,0.001]
[1760777673013,2.00294484,3892.2,3892.1,0.001]
[1760777673545,2.00294484,3892.2,3891.8,0.002]
[1760777673546,0.6336,3891.9,3891.8,0.002]
[1760777673752,7.9037392,3891.9,3891.8,0.002]
[1760777673966,20.48338415,3891.9,3891.8,0.002]
[1760777674529,19.35449515,3891.9,3891.8,0.002]
[1760777674949,15.93228815,3891.9,3891.8,0.002]
[1760777675155,13.16954315,3891.9,3891.8,0.002]
[1760777675458,14.80439602,3891.9,3891.8,0.002]
[1760777675824,21.31616402,3891.9,3891.8,0.002]
[1760777676723,21.76408353,3891.9,3891.8,0.002]
[1760777676949,23.02273311,3891.8,3891.7,0.001]
[1760777677248,21.90967597,3891.8,3891.7,0.001]
[1760777677447,30.3397751,3891.8,3891.7,0.001]
[1760777677724,23.62936399,3891.8,3891.7,0.001]
[1760777678031,6.34493984,3891.8,3891.7,0.001]
[1760777678225,8.35009184,3891.8,3891.7,0.001]
[1760777678535,6.34493984,3891.8,3891.7,0.001]
[1760777678734,8.79059184,3891.8,3891.7,0.001]
[1760777678936,6.34493984,3891.8,3891.7,0.001]
[1760777679165,8.95408784,3891.8,3891.7,0.001]
[1760777679945,8.53508784,3891.8,3891.7,0.001]
[1760777680165,6.34493984,3891.8,3891.7,0.001]
[1760777680665,9.46708784,3891.8,3891.7,0.001]
[1760777680856,6.34493984,3891.8,3891.7,0.001]
[1760777681433,9.47408784,3891.8,3891.7,0.001]
[1760777681634,6.34493984,3891.8,3891.7,0.001]
[1760777681834,6.34693984,3891.8,3891.7,0.001]
[1760777682035,9.48208784,3891.8,3891.7,0.001]
[1760777682343,6.34693984,3891.8,3891.7,0.001]
[1760777682675,9.48808784,3891.8,3891.7,0.001]
[1760777682838,6.34693984,3891.8,3891.7,0.001]
[1760777683033,9.50608784,3891.8,3891.7,0.001]
[1760777683269,6.34693984,3891.8,3891.7,0.001]
[1760777683468,9.52208784,3891.8,3891.7,0.001]
[1760777683782,9.52208784,3891.8,3886.5,0.13445182]
[1760777683783,19.317239,3889.7,3886.5,0.13445182]
[1760777683935,0.6336,3887.8,3886.5,0.13445182]
[1760777684137,5.54115929,3887.1,3886.6,0.4739]
[1760777684342,5.54115929,3887.1,3886.3,0.2051]
[1760777684343,1.728,3887.1,3887.0,1.0739]
[1760777684573,3.81315929,3887.1,3887.0,1.0739]
[1760777684959,0.6,3887.7,3887.0,0.6]
[1760777685167,5.54115929,3887.2,3887.1,0.2051]
[1760777685372,5.54115929,3887.2,3887.0,0.6]
[1760777685373,1.728,3887.1,3887.0,0.6]
[1760777685572,2.28211593,3887.2,3887.0,0.6]
[1760777685870,2.28211593,3887.2,3887.1,0.679]
[1760777685871,1.728,3887.2,3887.1,0.679]
[1760777686071,3.13554788,3887.8,3887.1,0.2051]
[1760777686368,3.13554788,3887.8,3887.1,0.679]
[1760777686941,0.04484237,3887.7,3887.1,0.679]
[1760777687137,1.16379484,3887.7,3887.0,0.6]
[1760777687459,0.04484237,3887.7,3887.2,0.2051]
[1760777687647,0.04484237,3887.7,3887.2,0.679]
[1760777688371,1.728,3887.4,3887.2,0.2051]
[1760777688574,1.728,3887.4,3887.3,0.4739]
[1760777688806,3.0468925,3887.4,3887.2,0.2051]
[1760777689297,3.0468925,3887.4,3887.2,0.679]
[1760777689498,0.04484237,3887.7,3887.3,0.4739]
[1760777689673,0.40349689,3888.5,3887.3,0.4739]
[1760777689873,0.40349689,3888.5,3888.4,0.2051]
[1760777690173,0.04483185,3888.6,3888.4,0.679]
[1760777690496,0.44824232,3888.6,3888.5,0.4739]
[1760777690706,0.04483185,3888.6,3888.5,0.4739]
[1760777691892,0.04483185,3888.6,3886.3,0.2051]
[1760777692077,1.728,3889.0,3888.5,0.2051]
[1760777692277,0.1728,3888.9,3888.5,0.2051]
[1760777692502,0.6336,3889.3,3888.5,0.2051]
[1760777692792,0.04482772,3888.9,3888.5,0.679]
[1760777694758,0.04482772,3888.9,3888.6,0.4739]
[1760777695193,0.04482772,3888.9,3888.5,0.2051]
[1760777695194,0.04482772,3888.9,3888.7,0.4739]
[1760777695490,0.04482772,3888.9,3888.8,0.4739]
[1760777697393,0.04482772,3888.9,3888.5,0.2051]
[1760777697568,0.04482772,3888.9,3888.6,0.4739]
[1760777697763,0.04482772,3888.9,3888.7,0.4739]
[1760777697970,0.04482772,3888.9,3888.8,0.4739]
[1760777698366,0.17282772,3888.9,3888.8,0.4739]
[1760777699579,0.17282772,3888.9,3888.6,2.57161727]
[1760777699896,0.17282772,3888.9,3888.7,2.57150511]
[1760777700304,0.17282772,3888.9,3888.8,2.57148734]
[1760777700499,0.17282772,3888.9,3888.7,0.4686]
[1760777701119,0.17282772,3888.9,3888.5,0.2061]
[1760777701283,0.128,3888.6,3888.5,0.2061]
[1760777701615,0.128,3888.6,3888.5,0.6747]
[1760777702506,0.128,3888.6,3888.5,0.2061]
[1760777703205,0.128,3888.6,3888.5,0.6747]
[1760777703499,0.128,3888.6,3888.5,0.2061]
[1760777703701,0.128,3888.6,3888.5,3.24638574]
[1760777704123,0.128,3888.6,3888.5,0.6747]
[1760777704321,0.128,3888.6,3888.5,3.24638574]
[1760777704894,0.17282772,3888.9,3888.6,2.57161882]
[1760777705112,0.17282772,3888.9,3888.6,3.04017657]
[1760777705299,0.17282772,3888.9,3888.5,0.2061]
[1760777705506,0.17282772,3888.9,3888.6,0.4437]
[1760777705914,0.17282772,3888.9,3888.6,3.01530146]
[1760777706116,0.17282772,3888.9,3888.6,2.57160146]
[1760777706429,0.17282772,3888.9,3888.5,2.77776646]
[1760777706727,0.17282772,3888.9,3888.5,0.001]
[1760777707033,0.17282772,3888.9,3888.5,2.57264878]
[1760777707399,0.17282772,3888.9,3888.5,0.001]
[1760777707733,0.17282772,3888.9,3888.5,2.57267661]
[1760777707942,0.27972772,3888.9,3888.5,0.001]
[1760777708230,0.128,3888.6,3888.5,0.001]
[1760777708435,0.128,3888.6,3888.5,2.57268574]
[1760777708728,0.04482772,3888.9,3888.7,2.57148821]
[1760777708936,0.17282772,3888.9,3888.6,0.4437]
[1760777709435,0.17282772,3888.9,3888.5,0.001]
[1760777710231,0.27972772,3888.9,3888.5,0.001]
[1760777710432,0.459,3888.8,3888.5,0.001]
[1760777710817,0.459,3888.7,3888.5,0.001]
[1760777711196,0.27972772,3888.9,3888.5,0.001]
[1760777711439,0.459,3888.6,3888.5,0.001]
[1760777719665,0.04682772,3888.9,3888.5,2.57263273]
[1760777720320,0.04682772,3888.9,3888.5,0.4447]
[1760777720515,0.04682772,3888.9,3888.5,0.001]
[1760777720820,0.04682772,3888.9,3888.6,2.57156189]
[1760777721219,0.128,3888.6,3888.5,0.001]
[1760777721544,0.128,3888.6,3888.5,2.57268574]
[1760777721746,0.128,3888.6,3888.5,3.01638574]
[1760777722247,0.128,3888.6,3888.5,2.57268574]
[1760777722573,0.128,3888.6,3888.5,0.001]
[1760777723413,0.587,3888.6,3888.5,0.001]
[1760777723620,1.22835891,3888.6,3888.5,0.001]
[1760777726960,6.18622028,3888.6,3888.5,0.001]
[1760777727256,5.54486137,3888.6,3888.5,0.001]
[1760777727960,5.58968742,3888.6,3888.5,0.001]
[1760777728650,6.04868742,3888.6,3888.5,0.001]
[1760777729019,4.32068742,3888.6,3888.5,0.001]
[1760777729223,4.31744616,3888.6,3888.5,0.001]
[1760777730078,4.76184616,3888.6,3888.5,0.001]
[1760777732129,4.31744616,3888.6,3888.5,0.001]
[1760777732660,0.04482605,3888.6,3888.5,0.001]
[1760777732831,3.86168742,3888.6,3888.5,2.57268574]
[1760777733256,3.86168742,3888.6,3888.5,0.001]
[1760777733439,0.04482605,3888.6,3888.5,0.001]
[1760777736040,0.04482605,3888.6,3888.5,2.57268574]
[1760777737075,0.04482605,3888.6,3888.5,0.001]
[1760777737453,0.04482605,3888.6,3888.5,2.57268574]
[1760777737945,0.04482605,3888.6,3888.5,0.001]
[1760777740949,0.48922605,3888.6,3888.5,0.001]
[1760777747575,1.12282605,3888.6,3888.5,0.001]